[Event "58th Akiba Rubinstein A 2022"]
[Site "Polanica-Zdroj"]
[Date "2022.08.20"]
[Round "8.3"]
[White "Razin, Vadim"]
[Black "Kowalczyk, Rafal"]
[Result "1-0"]
[ECO "E95"]
[WhiteElo "2428"]
[BlackElo "2239"]
[Annotator "TA"]
[PlyCount "129"]
[EventDate "2022.08.13"]
[EventCountry "POL"]
[SourceTitle "playchess.com"]
[Source "ChessBase"]
[SourceQuality "1"]
[TimeControl "40/5400+30:1800+30"]

{[%evp 17,128,40,53,13,18,0,32,15,19,19,17,20,27,28,25,26,64,49,58,47,55,50,111,110,125,84,98,94,103,41,109,93,117,71,70,70,88,59,62,35,87,66,106,64,121,91,135,123,135,98,234,211,261,224,281,282,319,329,343,271,271,279,275,285,272,272,275,245,229,194,221,204,237,237,234,219,265,222,245,236,243,134,191,180,193,173,210,213,223,195,191,8,570,569,541,539,559,617,29979,29975,29973,29974,29982,29983,29984,29985,29996,29997,29997,29998,29998,29999,29999]} 1. d4 {[%emt 0:00:03]} Nf6 {[%emt 0:00:13]} 2. Nf3 {[%emt 0:00:11]} g6 {[%emt 0:00:07]} 3. c4 {[%emt 0:00:18]} Bg7 {[%emt 0:00:18]} 4. Nc3 {[%emt 0:00:05]} O-O {[%emt 0:00:10]} 5. e4 {[%emt 0:00:05]} d6 {[%emt 0:00:09]} 6. Be2 {[%emt 0:00:04]} Nbd7 {[%emt 0:00:08]} 7. O-O {[%emt 0:00:06]} e5 {[%emt 0:00:07]} 8. Re1 {[%emt 0:00:28]} Re8 {[%emt 0:00:09]} 9. Bf1 {[%emt 0:00:54]} a6 {[%emt 0:00:07]} 10. Bg5 {[%emt 0:06:35] [#] E95: King's Indian: Classical: 7...Nbd7 8 Re1.} h6 $146 {[%emt 0:10:16]} ({Predecessor:} 10... c5 11. dxc5 Nxc5 12. b4 Ne6 13. Bh4 Nc7 14. h3 h6 15. Bxf6 Qxf6 16. Nd5 Nxd5 17. cxd5 Bd7 {1-0 (35) Medina,S (2138)-Fuertes,L Caseros 2001}) 11. Bh4 {[%emt 0:02:53]} c6 {[%emt 0:16:55]} 12. Qd2 {[%emt 0:03:56] White is slightly better.} Qc7 {[%emt 0:09:49]} 13. Rad1 {[%emt 0:03:21]} Nh5 {[%emt 0:05:48]} 14. d5 c5 {[%emt 0:10:53]} 15. Qc2 {[%emt 0:21:43]} Nf8 {[%emt 0:02:24]} 16. Nd2 {[%emt 0:00:38]} f5 {[%emt 0:12:23]} 17. exf5 {[%emt 0:00:37]} gxf5 {[%emt 0:00:39]} 18. f3 $1 {[%emt 0:00:26]} Ng6 {[%emt 0:07:57]} 19. Bf2 {[%emt 0:00:06][%cal Ob2b4]} Qf7 {[%emt 0:00:58]} (19... b6 $14) 20. Na4 $16 {[%emt 0:09:49]} Qc7 {[%emt 0:08:59] Prevents Nb6.} 21. Qb3 {[%emt 0:10:24] Prevents b6.} Nf6 {[%emt 0:05:08]} 22. Nb6 {[%emt 0:05:18]} Rb8 {[%emt 0:00:06]} 23. h3 {[%emt 0:11:42]} (23. Bd3 $16) 23... e4 {[%emt 0:05:50]} (23... Qf7 $14) 24. fxe4 {[%emt 0:06:58]} f4 {[%emt 0:01:07]} 25. Nf3 {[%emt 0:05:23]} ({White should play} 25. Nxc8 {Nb6 is the strong threat.} Rbxc8 26. Be2) 25... Nd7 {[%emt 0:01:45]} 26. Nxc8 {[%emt 0:03:15] White is more active.} Qxc8 {[%emt 0:00:09]} 27. Qc2 {[%emt 0:03:41]} Nde5 {[%emt 0:00:23]} 28. Kh2 {[%emt 0:02:27]} Kh7 {[%emt 0:00:59]} (28... Nxf3+ $14 29. gxf3 Re5) 29. Be2 {[%emt 0:00:44]} Qd8 {[%emt 0:00:23]} 30. a3 {[%emt 0:01:23][%cal Ba2a3,Ba3a4,Ba4a5][%mdl 32]} Qf6 {[%emt 0:00:38]} ({Better is} 30... b5 $14) 31. Rb1 {[%emt 0:00:59]} Rec8 {[%emt 0:00:32]} 32. b4 {[%emt 0:00:33]} b6 {[%emt 0:00:22]} 33. bxc5 {[%emt 0:01:13]} dxc5 {[%emt 0:00:37]} (33... bxc5 $16 {keeps fighting.} 34. Rb3 Rxb3 35. Qxb3 Rg8) 34. a4 {[%emt 0:00:19]} Qd6 {[%emt 0:00:20]} 35. Rb3 {[%emt 0:00:25]} Bf6 {[%emt 0:00:30]} 36. Reb1 {[%emt 0:00:35]} Bd8 {[%emt 0:00:12]} 37. a5 {[%emt 0:00:42]} Rb7 {[%emt 0:00:57]} 38. axb6 {[%emt 0:00:33]} Rcb8 {[%emt 0:00:05]} 39. Qc3 {[%emt 0:00:37]} Rxb6 {[%emt 0:00:50]} 40. Rxb6 {[%emt 0:00:00]} Rxb6 {[%emt 0:00:00]} 41. Rxb6 {[%emt 0:05:33]} Bxb6 {[%emt 0:00:44]} 42. Qa1 {[%emt 0:04:44]} Bd8 {[%emt 0:01:31]} 43. Qa4 {[%emt 0:12:53]} Be7 {[%emt 0:14:42]} 44. Qe8 {[%emt 0:01:05]} Qd7 {[%emt 0:00:46]} 45. Qa8 {[%emt 0:01:02]} Qd6 {[%emt 0:02:36]} 46. Qa7 {[%emt 0:01:34]} Kg8 {[%emt 0:00:23]} 47. Be1 {[%emt 0:00:42]} Nxf3+ {[%emt 0:03:22]} 48. Bxf3 {[%emt 0:00:06]} Ne5 {[%emt 0:00:26]} 49. Ba5 {[%emt 0:02:41]} (49. Kh1 $18) 49... Qf6 {[%emt 0:08:53]} (49... Nxc4 $16 50. Bc7 Qf6) 50. Qb8+ $18 {[%emt 0:00:25]} Kh7 {[%emt 0:00:21]} 51. Qb1 {[%emt 0:04:44]} (51. Bc7 Nxf3+ 52. gxf3 Qh4 53. Bxf4 Qf2+ 54. Kh1 Qxf3+ 55. Kh2 Qf2+ 56. Kh1 Qf3+ 57. Kh2 Qf2+ 58. Kh1 Qf3+ $11) 51... Bd6 {[%emt 0:01:51]} 52. Kh1 {[%emt 0:00:24]} ({Don't take} 52. Qb7+ Qg7 53. Qb3 (53. Qxg7+ Kxg7 54. Bc3 a5 $16) 53... Bc7 $16) 52... Kg8 {[%emt 0:00:30]} 53. Bc3 {[%emt 0:00:23] This bishop pair is nice.} Qh4 {[%emt 0:01:01]} 54. Qb7 $2 {[%emt 0:01:13] [#]} (54. Be1 $18 Qd8 55. Bc3) 54... Qf6 {[%emt 0:00:29][%mdl 8192]} (54... Qf2 $1 $11 {and Black has nothing to worry.} 55. Qb2 (55. Qc8+ Kh7 $11) 55... Qxb2 56. Bxb2 Nxc4) 55. Qxa6 {[%emt 0:00:18]} Qe7 {[%emt 0:00:31]} 56. Qc8+ {[%emt 0:00:13]} Kh7 {[%emt 0:00:23]} 57. Bg4 {[%emt 0:00:51] [#] Prevents Qd7. And now Be6 would win.} f3 {[%emt 0:00:34]} 58. Qf5+ {[%emt 0:00:26] White mates.} Kg8 {[%emt 0:00:22]} 59. gxf3 {[%emt 0:00:36]} Qg5 {[%emt 0:00:37]} 60. Qe6+ {[%emt 0:00:37]} Nf7 {[%emt 0:00:24]} 61. f4 {[%emt 0:00:30]} Qxf4 {[%emt 0:00:26]} 62. Qg6+ {[%emt 0:00:07]} Kf8 {[%emt 0:00:05]} 63. Bg7+ {[%emt 0:00:05]} Ke8 {[%emt 0:00:30]} 64. Qe6+ {[%emt 0:00:04]} Be7 {[%emt 0:00:19]} 65. Qd7# {[%emt 0:00:02] Weighted Error Value: White=0.21 (precise) /Black=0.38} 1-0

[Event "58th Akiba Rubinstein A 2022"]
[Site "Polanica-Zdroj"]
[Date "2022.08.20"]
[Round "8.4"]
[White "Skrzypczynski, Kacper"]
[Black "Siekanska, Maria"]
[Result "0-1"]
[ECO "D30"]
[WhiteElo "1793"]
[BlackElo "1964"]
[Annotator "NA RC"]
[PlyCount "52"]
[EventDate "2022.08.13"]
[EventCountry "POL"]
[SourceTitle "playchess.com"]
[Source "ChessBase"]
[SourceQuality "1"]
[TimeControl "40/5400+30:1800+30"]

1. d4 {[%emt 0:00:01]} d5 {[%emt 0:00:08]} 2. c4 {[%emt 0:00:09]} e6 {[%emt 0:00:07]} 3. Nf3 {[%emt 0:00:06]} c5 {[%emt 0:00:07]} 4. cxd5 {[%emt 0:00:13]} exd5 {[%emt 0:00:06]} 5. g3 {[%emt 0:00:08]} Nc6 {[%emt 0:00:17]} 6. Bg2 {[%emt 0:00:49]} Nf6 {[%emt 0:00:18]} 7. O-O {[%emt 0:00:08]} Be7 {[%emt 0:00:07]} 8. dxc5 {[%emt 0:00:06]} Bxc5 {[%emt 0:00:11]} 9. a3 {[%emt 0:00:41]} Ne4 {[%emt 0:00:40]} 10. b4 {[%emt 0:01:20]} Be7 {[%emt 0:00:11]} 11. Bb2 {[%emt 0:00:35]} Bf6 {[%emt 0:00:19]} 12. Qc1 {[%emt 0:21:57]} O-O {[%emt 0:05:51]} 13. Nc3 {[%emt 0:02:49]} Re8 {[%emt 0:00:55]} 14. Re1 {[%emt 0:09:31]} Bf5 {[%emt 0:04:42]} 15. Na4 {[%emt 0:00:56]} Rc8 {[%emt 0:07:52]} 16. Bxf6 {[%emt 0:02:04]} Qxf6 {[%emt 0:01:10]} 17. Qb2 {[%emt 0:00:38]} d4 {[%emt 0:19:12]} 18. Rac1 {[%emt 0:12:27]} b6 {[%emt 0:05:53]} 19. b5 {[%emt 0:15:47]} Ne5 {[%emt 0:03:50]} 20. Nxe5 {[%emt 0:06:55]} Qxe5 {[%emt 0:00:52]} 21. Qb4 {[%emt 0:00:51]} Rxc1 {[%emt 0:00:45]} 22. Rxc1 {[%emt 0:00:36]} Nxf2 {[%emt 0:00:27]} 23. Qd2 {[%emt 0:04:21]} Nh3+ {[%emt 0:05:50]} 24. Kf1 {[%emt 0:03:33]} Bg4 {[%emt 0:01:42]} 25. Bxh3 {[%emt 0:04:45]} Bxh3+ {[%emt 0:00:31]} 26. Kf2 {[%emt 0:00:48]} Qf5+ {[%emt 0:00:56]} 0-1

[Event "58th Akiba Rubinstein A 2022"]
[Site "Polanica-Zdroj"]
[Date "2022.08.20"]
[Round "8.5"]
[White "Skurniak, Szymon"]
[Black "Barwinska, Ewa"]
[Result "1/2-1/2"]
[ECO "A35"]
[WhiteElo "2051"]
[BlackElo "1940"]
[Annotator "NA"]
[PlyCount "85"]
[EventDate "2022.08.13"]
[EventCountry "POL"]
[SourceTitle "playchess.com"]
[Source "ChessBase"]
[SourceQuality "1"]
[TimeControl "40/5400+30:1800+30"]

1. c4 {[%emt 0:00:01]} c5 2. Nc3 Nf6 3. Nf3 Nc6 4. g3 d5 5. cxd5 Nxd5 6. Bg2 Nc7 7. d3 e5 {[%emt 0:08:01]} 8. Nd2 {[%emt 0:19:03]} Be6 {[%emt 0:03:18]} 9. Nc4 {[%emt 0:06:50]} Qd7 {[%emt 0:12:42]} 10. Qa4 {[%emt 0:13:36]} f6 11. f4 Nb4 12. Qxd7+ Kxd7 13. O-O exf4 14. Bxf4 Ncd5 15. Bd2 Nxc3 16. bxc3 Bxc4 17. dxc4 Nc6 18. Rab1 Na5 19. Bf4 Re8 20. Rfd1+ Ke7 21. Bxb7 g5 22. Bd6+ Ke6 23. Bxf8 Nxb7 24. Bg7 Rhg8 25. Rxb7 Re7 26. Rxe7+ Kxe7 27. Bxf6+ Kxf6 28. Rd7 Re8 29. Kf2 h5 30. Rxa7 Re4 31. Ra4 h4 32. e3 Kf5 33. Kf3 hxg3 34. hxg3 Rg4 35. Kf2 Re4 36. Kf3 Rg4 37. Ra5 Rxc4 38. e4+ Ke5 39. Ra8 Rxc3+ 40. Kg4 Kxe4 41. a4 Ra3 42. a5 c4 {[%emt 1:32:39]} 43. a6 {[%emt 1:19:04]} 1/2-1/2

[Event "58th Akiba Rubinstein A 2022"]
[Site "Polanica-Zdroj"]
[Date "2022.08.20"]
[Round "8.6"]
[White "Majocha, Piotr"]
[Black "Dziewonski, Dariusz"]
[Result "1/2-1/2"]
[ECO "A06"]
[WhiteElo "2036"]
[BlackElo "2029"]
[Annotator "NA RC"]
[PlyCount "47"]
[EventDate "2022.08.13"]
[EventCountry "POL"]
[SourceTitle "playchess.com"]
[Source "ChessBase"]
[SourceQuality "1"]
[TimeControl "40/5400+30:1800+30"]

1. Nf3 {[%emt 0:00:14]} d5 {[%emt 0:00:19]} 2. c4 {[%emt 0:00:06]} e6 {[%emt 0:00:05]} 3. d4 {[%emt 0:00:16]} Nf6 {[%emt 0:00:05]} 4. g3 {[%emt 0:00:06]} Bb4+ {[%emt 0:00:04]} 5. Bd2 {[%emt 0:00:55]} Be7 {[%emt 0:00:05]} 6. Bg2 {[%emt 0:00:29]} O-O {[%emt 0:00:06]} 7. Qc2 {[%emt 0:00:39]} c6 {[%emt 0:00:18]} 8. O-O {[%emt 0:00:36]} Nbd7 {[%emt 0:00:28]} 9. Bg5 {[%emt 0:15:20]} h6 {[%emt 0:12:33]} 10. Bxf6 {[%emt 0:00:10]} Bxf6 {[%emt 0:03:22]} 11. Nbd2 {[%emt 0:00:28]} Qb6 {[%emt 0:19:42]} 12. c5 {[%emt 0:03:36]} Qc7 {[%emt 0:01:32]} 13. e4 {[%emt 0:00:21]} b6 {[%emt 0:03:06]} 14. b4 {[%emt 0:16:38]} a5 {[%emt 0:09:16]} 15. a3 {[%emt 0:04:41]} axb4 {[%emt 0:01:18]} 16. axb4 {[%emt 0:00:04]} Ba6 {[%emt 0:00:09]} 17. Rfb1 {[%emt 0:02:28]} Ra7 {[%emt 0:05:43]} 18. Ra3 {[%emt 0:08:10]} Rfa8 {[%emt 0:01:06]} 19. Rba1 {[%emt 0:00:50]} Bb5 {[%emt 0:02:18]} 20. Qc3 {[%emt 0:05:50]} Be7 {[%emt 0:12:10]} 21. Bf1 {[%emt 0:04:26]} Bxf1 {[%emt 0:02:57]} 22. Kxf1 {[%emt 0:00:05]} bxc5 {[%emt 0:03:40]} 23. bxc5 {[%emt 0:00:17]} Qb7 {[%emt 0:11:38]} 24. Rxa7 {[%emt 0:02:16]} 1/2-1/2

[Event "58th Akiba Rubinstein A 2022"]
[Site "Polanica-Zdroj"]
[Date "2022.08.20"]
[Round "8.7"]
[White "Kazmierowski, Tymon"]
[Black "Lambrecht, Tomasz"]
[Result "1/2-1/2"]
[ECO "A06"]
[WhiteElo "1961"]
[BlackElo "1956"]
[Annotator "NA RC"]
[PlyCount "44"]
[EventDate "2022.08.13"]
[EventCountry "POL"]
[SourceTitle "playchess.com"]
[Source "ChessBase"]
[SourceQuality "1"]
[TimeControl "40/5400+30:1800+30"]

1. Nf3 d5 2. g3 g6 3. Bg2 Bg7 4. d4 Nf6 5. O-O c6 6. c4 dxc4 7. Ne5 Ng4 8. Nxg4 Bxg4 9. Be3 Nd7 10. Nd2 Nb6 11. h3 Bf5 12. Nf3 Be4 13. Rc1 O-O 14. a4 a5 15. b3 c3 16. Rxc3 Nd5 17. Rc1 Nxe3 18. fxe3 Qd6 19. Kh2 Rad8 20. Qd2 e5 21. Qxa5 exd4 22. exd4 Bxf3 1/2-1/2

[Event "58th Akiba Rubinstein A 2022"]
[Site "Polanica-Zdroj"]
[Date "2022.08.20"]
[Round "8.8"]
[White "Kejna, Piotr"]
[Black "Nowak, Filip"]
[Result "1-0"]
[ECO "C77"]
[WhiteElo "1970"]
[BlackElo "1957"]
[Annotator "NA RC"]
[PlyCount "93"]
[EventDate "2022.08.13"]
[EventCountry "POL"]
[SourceTitle "playchess.com"]
[Source "ChessBase"]
[SourceQuality "1"]
[TimeControl "40/5400+30:1800+30"]

1. e4 {[%emt 0:00:02]} e5 {[%emt 0:00:08]} 2. Nf3 {[%emt 0:00:15]} Nc6 {[%emt 0:00:05]} 3. Bb5 {[%emt 0:00:31]} a6 {[%emt 0:00:08]} 4. Ba4 {[%emt 0:00:16]} Nf6 {[%emt 0:00:07]} 5. Bxc6 {[%emt 0:00:15]} dxc6 {[%emt 0:01:13]} 6. d3 {[%emt 0:00:24]} Bd6 {[%emt 0:01:26]} 7. Nbd2 {[%emt 0:01:26]} O-O {[%emt 0:02:27]} 8. O-O {[%emt 0:02:19]} Re8 {[%emt 0:00:54]} 9. Nc4 {[%emt 0:01:03]} c5 {[%emt 0:10:04]} 10. a4 {[%emt 0:03:58]} h6 {[%emt 0:03:25]} 11. b3 {[%emt 0:02:54]} Bg4 {[%emt 0:04:55]} 12. Bb2 {[%emt 0:07:17]} b5 {[%emt 0:04:25]} 13. Ne3 {[%emt 0:01:23]} Qe7 {[%emt 0:03:20]} 14. Re1 {[%emt 0:11:46]} c6 {[%emt 0:03:03]} 15. Ra2 {[%emt 0:01:07]} Qe6 {[%emt 0:08:01]} 16. h3 {[%emt 0:04:21]} Bxf3 {[%emt 0:01:24]} 17. Qxf3 {[%emt 0:00:07]} Bf8 {[%emt 0:11:38]} 18. Rea1 {[%emt 0:08:52]} Rac8 {[%emt 0:07:06]} 19. axb5 {[%emt 0:05:15]} axb5 {[%emt 0:00:06]} 20. Ra7 {[%emt 0:01:22]} Re7 {[%emt 0:03:27]} 21. Rxe7 {[%emt 0:06:38]} Qxe7 {[%emt 0:01:16]} 22. Qg3 {[%emt 0:01:00]} Nd7 {[%emt 0:02:02]} 23. Ng4 {[%emt 0:02:52]} Qg5 {[%emt 0:01:06]} 24. Ra7 {[%emt 0:06:11]} Rd8 {[%emt 0:04:03]} 25. h4 {[%emt 0:03:13]} Qg6 {[%emt 0:03:06]} 26. Bxe5 {[%emt 0:03:23]} h5 {[%emt 0:03:36]} 27. Ne3 {[%emt 0:00:29]} Nxe5 {[%emt 0:00:27]} 28. Qxe5 {[%emt 0:00:04]} Bd6 {[%emt 0:00:48]} 29. Qf5 {[%emt 0:00:10]} Qxf5 {[%emt 0:00:29]} 30. Nxf5 {[%emt 0:00:14]} c4 {[%emt 0:00:24]} 31. bxc4 {[%emt 0:01:26]} Bc5 {[%emt 0:13:23]} 32. Rc7 {[%emt 0:00:57]} bxc4 {[%emt 0:00:51]} 33. Rxc6 {[%emt 0:01:23]} cxd3 {[%emt 0:00:10]} 34. Rxc5 {[%emt 0:02:19]} d2 {[%emt 0:00:05]} 35. Ne3 {[%emt 0:00:04]} d1=Q+ {[%emt 0:01:08]} 36. Nxd1 {[%emt 0:00:01]} Rxd1+ {[%emt 0:00:03]} 37. Kh2 {[%emt 0:00:09]} f6 {[%emt 0:00:42]} 38. Kg3 {[%emt 0:00:36]} g6 {[%emt 0:00:01]} 39. Rc7 {[%emt 0:00:16]} Rd4 {[%emt 0:00:09]} 40. f3 {[%emt 0:00:00]} f5 {[%emt 0:00:00]} 41. exf5 {[%emt 0:00:56]} gxf5 {[%emt 0:00:22]} 42. Rc5 {[%emt 0:00:37]} f4+ {[%emt 0:00:02]} 43. Kh3 {[%emt 0:00:21]} Rd2 {[%emt 0:00:04]} 44. Rxh5 {[%emt 0:00:35]} Rxc2 {[%emt 0:00:01]} 45. Rf5 {[%emt 0:00:10]} Rc4 {[%emt 0:00:06]} 46. Kg4 {[%emt 0:00:06]} Rc2 {[%emt 0:00:04]} 47. Kxf4 {[%emt 0:00:05]} 1-0

[Event "58th Akiba Rubinstein A 2022"]
[Site "Polanica-Zdroj"]
[Date "2022.08.20"]
[Round "8.9"]
[White "Motyl, Tomasz"]
[Black "Rog, Bartlomiej"]
[Result "0-1"]
[ECO "B00"]
[WhiteElo "1936"]
[BlackElo "2091"]
[Annotator "NA RC"]
[PlyCount "98"]
[EventDate "2022.08.13"]
[EventCountry "POL"]
[SourceTitle "playchess.com"]
[Source "ChessBase"]
[SourceQuality "1"]
[TimeControl "40/5400+30:1800+30"]

1. e4 {[%emt 0:00:04]} Nc6 {[%emt 0:03:23]} 2. Nc3 {[%emt 0:04:33]} Nf6 {[%emt 0:04:57]} 3. d4 {[%emt 0:02:03]} d6 {[%emt 0:01:03]} 4. Nf3 {[%emt 0:10:19]} g6 {[%emt 0:01:26]} 5. h3 {[%emt 0:06:11]} Bg7 {[%emt 0:00:14]} 6. Be3 {[%emt 0:00:15]} O-O {[%emt 0:00:14]} 7. Qd2 {[%emt 0:01:49]} e5 {[%emt 0:07:43]} 8. O-O-O {[%emt 0:06:15]} exd4 {[%emt 0:08:30]} 9. Nxd4 {[%emt 0:00:18]} Re8 {[%emt 0:11:09]} 10. f3 {[%emt 0:02:16]} Bd7 {[%emt 0:09:22]} 11. g4 {[%emt 0:01:05]} a6 {[%emt 0:09:53]} 12. h4 {[%emt 0:01:37]} b5 {[%emt 0:03:31]} 13. h5 {[%emt 0:09:52]} Ne5 {[%emt 0:08:31]} 14. hxg6 {[%emt 0:06:04]} fxg6 {[%emt 0:00:41]} 15. Be2 {[%emt 0:11:04]} c5 {[%emt 0:05:11]} 16. Nb3 {[%emt 0:01:34]} c4 {[%emt 0:00:54]} 17. Nd4 {[%emt 0:07:01]} b4 {[%emt 0:02:07]} 18. Nb1 {[%emt 0:03:23]} c3 {[%emt 0:09:55]} 19. bxc3 {[%emt 0:00:10]} bxc3 {[%emt 0:00:06]} 20. Qxc3 {[%emt 0:01:03]} Rc8 {[%emt 0:02:00]} 21. Qb3+ {[%emt 0:00:43]} Kh8 {[%emt 0:00:02]} 22. Bh6 {[%emt 0:05:27]} Bxh6+ {[%emt 0:00:21]} 23. Rxh6 {[%emt 0:00:05]} Nfxg4 {[%emt 0:01:03]} 24. Rxh7+ {[%emt 0:04:27]} Kxh7 {[%emt 0:00:03]} 25. fxg4 {[%emt 0:00:12]} Qg5+ {[%emt 0:05:21]} 26. Nd2 {[%emt 0:00:12]} Re7 {[%emt 0:02:47]} 27. Rh1+ {[%emt 0:01:08]} Kg7 {[%emt 0:00:03]} 28. Qh3 {[%emt 0:00:59]} Nf7 {[%emt 0:02:11]} 29. Qh7+ {[%emt 0:01:04]} Kf8 {[%emt 0:00:01]} 30. Rf1 {[%emt 0:01:52]} Qe5 {[%emt 0:00:02]} 31. N2f3 {[%emt 0:04:05]} Qg7 {[%emt 0:02:37]} 32. Qh2 {[%emt 0:00:49]} Ke8 {[%emt 0:00:31]} 33. Bxa6 {[%emt 0:01:01]} Rc5 {[%emt 0:00:11]} 34. Nb3 {[%emt 0:01:11]} Rc7 {[%emt 0:00:02]} 35. Nfd4 {[%emt 0:01:17]} Rxe4 {[%emt 0:00:27]} 36. Rxf7 {[%emt 0:04:15]} Qxf7 {[%emt 0:00:28]} 37. Qxd6 {[%emt 0:00:05]} Qf4+ {[%emt 0:00:11]} 38. Qxf4 {[%emt 0:01:38]} Rxf4 {[%emt 0:00:02]} 39. g5 {[%emt 0:00:41]} Rg4 {[%emt 0:01:09]} 40. a4 {[%emt 0:00:00]} Bxa4 {[%emt 0:00:00]} 41. Bd3 {[%emt 0:01:52]} Rxg5 {[%emt 0:02:17]} 42. Ne6 {[%emt 0:02:23]} Rg1+ {[%emt 0:00:02]} 43. Kd2 {[%emt 0:00:08]} Rf7 {[%emt 0:03:28]} 44. Nbc5 {[%emt 0:02:19]} Bd7 {[%emt 0:01:15]} 45. Nd4 {[%emt 0:00:46]} Ke7 {[%emt 0:00:17]} 46. Ke3 {[%emt 0:01:13]} g5 {[%emt 0:00:49]} 47. Ne4 {[%emt 0:01:07]} g4 {[%emt 0:02:44]} 48. c4 {[%emt 0:00:36]} Rh1 {[%emt 0:04:56]} 49. Ng3 {[%emt 0:03:05]} Rh3 {[%emt 0:00:18]} 0-1

[Event "58th Akiba Rubinstein A 2022"]
[Site "Polanica-Zdroj"]
[Date "2022.08.20"]
[Round "8.10"]
[White "Kasprzak, Lukasz"]
[Black "Paprocki, Antoni"]
[Result "1/2-1/2"]
[ECO "A14"]
[WhiteElo "1938"]
[BlackElo "1981"]
[Annotator "NA RC"]
[PlyCount "75"]
[EventDate "2022.08.13"]
[EventCountry "POL"]
[SourceTitle "playchess.com"]
[Source "ChessBase"]
[SourceQuality "1"]
[TimeControl "40/5400+30:1800+30"]

1. c4 {[%emt 0:02:49]} e6 {[%emt 0:00:38]} 2. Nf3 {[%emt 0:02:39]} Nf6 {[%emt 0:02:31]} 3. g3 {[%emt 0:01:51]} d5 {[%emt 0:02:44]} 4. Bg2 {[%emt 0:01:02]} Be7 {[%emt 0:03:27]} 5. O-O {[%emt 0:02:33]} d4 {[%emt 0:00:38]} 6. d3 {[%emt 0:09:00]} O-O {[%emt 0:00:51]} 7. e3 {[%emt 0:15:52]} c5 {[%emt 0:02:08]} 8. exd4 {[%emt 0:05:46]} cxd4 {[%emt 0:00:07]} 9. Re1 {[%emt 0:01:55]} Nc6 {[%emt 0:01:24]} 10. a3 {[%emt 0:02:45]} a5 {[%emt 0:00:19]} 11. Bf4 {[%emt 0:05:51]} Bd6 {[%emt 0:05:10]} 12. Ne5 {[%emt 0:04:12]} Nxe5 {[%emt 0:03:55]} 13. Bxe5 {[%emt 0:00:05]} Bxe5 {[%emt 0:00:29]} 14. Rxe5 {[%emt 0:00:03]} Qc7 {[%emt 0:14:01]} 15. Rb5 {[%emt 0:11:05]} Ra7 {[%emt 0:03:17]} 16. a4 {[%emt 0:03:27]} Bd7 {[%emt 0:05:18]} 17. Rb3 {[%emt 0:03:47]} Bc6 {[%emt 0:01:40]} 18. Rba3 {[%emt 0:01:56]} Nd7 {[%emt 0:04:10]} 19. Nd2 {[%emt 0:03:27]} e5 {[%emt 0:01:34]} 20. Qc2 {[%emt 0:02:06]} Ra6 {[%emt 0:03:37]} 21. Bxc6 {[%emt 0:06:12]} bxc6 {[%emt 0:04:00]} 22. c5 {[%emt 0:00:53]} Nf6 {[%emt 0:02:03]} 23. Re1 {[%emt 0:01:55]} Nd5 {[%emt 0:00:42]} 24. Nc4 {[%emt 0:01:34]} f6 {[%emt 0:00:52]} 25. Nd6 {[%emt 0:03:01]} Raa8 {[%emt 0:01:52]} 26. Rb3 {[%emt 0:03:53]} Rab8 {[%emt 0:00:33]} 27. Rxb8 {[%emt 0:00:27]} Qxb8 {[%emt 0:01:23]} 28. Qe2 {[%emt 0:01:20]} Qb4 {[%emt 0:00:56]} 29. Rc1 {[%emt 0:00:10]} Qb8 {[%emt 0:10:28]} 30. Qg4 {[%emt 0:01:44]} Qc7 {[%emt 0:00:05]} 31. Qe6+ {[%emt 0:01:01]} Kh8 {[%emt 0:00:05]} 32. h4 {[%emt 0:00:42]} Nb4 {[%emt 0:03:20]} 33. Rd1 {[%emt 0:00:25]} h6 {[%emt 0:03:31]} 34. h5 {[%emt 0:00:26]} Qa7 {[%emt 0:01:11]} 35. Kh2 {[%emt 0:00:50]} Na6 {[%emt 0:05:16]} 36. Rc1 {[%emt 0:00:20]} Rb8 {[%emt 0:04:50]} 37. Nc8 {[%emt 0:00:50]} Qc7 {[%emt 0:02:52]} 38. Qe8+ {[%emt 0:01:08]} 1/2-1/2

[Event "58th Akiba Rubinstein A 2022"]
[Site "Polanica-Zdroj"]
[Date "2022.08.20"]
[Round "8.11"]
[White "Betkowski, Andrzej"]
[Black "Paszkowski, Krystian"]
[Result "1/2-1/2"]
[ECO "B23"]
[WhiteElo "2063"]
[BlackElo "1988"]
[Annotator "NA RC"]
[PlyCount "81"]
[EventDate "2022.08.13"]
[EventCountry "POL"]
[SourceTitle "playchess.com"]
[Source "ChessBase"]
[SourceQuality "1"]
[TimeControl "40/5400+30:1800+30"]

1. e4 {[%emt 0:00:08]} c5 {[%emt 0:00:38]} 2. Nc3 {[%emt 0:00:05]} Nc6 {[%emt 0:00:06]} 3. Nge2 {[%emt 0:00:10]} d6 {[%emt 0:08:43]} 4. d4 {[%emt 0:00:54]} cxd4 {[%emt 0:00:05]} 5. Nxd4 {[%emt 0:00:05]} e5 {[%emt 0:00:08]} 6. Nde2 {[%emt 0:02:40]} Nf6 {[%emt 0:12:46]} 7. g3 {[%emt 0:03:39]} Be7 {[%emt 0:17:11]} 8. Bg2 {[%emt 0:00:39]} O-O {[%emt 0:00:41]} 9. O-O {[%emt 0:02:23]} Be6 {[%emt 0:03:30]} 10. h3 {[%emt 0:07:08]} Rc8 {[%emt 0:02:34]} 11. Be3 {[%emt 0:01:22]} a6 {[%emt 0:04:21]} 12. Qd2 {[%emt 0:13:00]} Na5 {[%emt 0:07:23]} 13. b3 {[%emt 0:03:03]} b5 {[%emt 0:00:23]} 14. Rfd1 {[%emt 0:05:59]} Qd7 {[%emt 0:14:22]} 15. Kh2 {[%emt 0:05:13]} b4 {[%emt 0:00:45]} 16. Na4 {[%emt 0:01:39]} Nc4 {[%emt 0:01:32]} 17. Qd3 {[%emt 0:08:46]} Qb5 {[%emt 0:08:41]} 18. c3 {[%emt 0:05:28]} Nxe3 {[%emt 0:02:52]} 19. Qxe3 {[%emt 0:00:27]} bxc3 {[%emt 0:06:42]} 20. Naxc3 {[%emt 0:01:29]} Qa5 {[%emt 0:01:49]} 21. Rac1 {[%emt 0:01:38]} Rc7 {[%emt 0:04:09]} 22. Na4 {[%emt 0:05:06]} Rfc8 {[%emt 0:00:15]} 23. Rxc7 {[%emt 0:01:06]} Rxc7 {[%emt 0:00:15]} 24. Rc1 {[%emt 0:02:03]} Rxc1 {[%emt 0:00:52]} 25. Qxc1 {[%emt 0:00:30]} Bd7 {[%emt 0:00:44]} 26. Qc3 {[%emt 0:02:47]} Bd8 {[%emt 0:01:03]} 27. Qxa5 {[%emt 0:02:03]} Bxa5 {[%emt 0:00:01]} 28. Nac3 {[%emt 0:00:23]} Bb4 {[%emt 0:00:28]} 29. g4 {[%emt 0:06:20]} h6 {[%emt 0:00:11]} 30. Kg3 {[%emt 0:00:46]} Bc6 {[%emt 0:01:10]} 31. f4 {[%emt 0:00:36]} Kf8 {[%emt 0:00:39]} 32. f5 {[%emt 0:04:04]} g5 {[%emt 0:00:14]} 33. Kf2 {[%emt 0:00:35]} Ke7 {[%emt 0:00:21]} 34. Ke3 {[%emt 0:01:24]} Kd7 {[%emt 0:00:33]} 35. Kd3 {[%emt 0:01:19]} Kc7 {[%emt 0:00:58]} 36. Kc4 {[%emt 0:02:25]} Bxc3 {[%emt 0:00:43]} 37. Nxc3 {[%emt 0:00:31]} Kb6 {[%emt 0:00:29]} 38. a4 {[%emt 0:04:58]} a5 {[%emt 0:00:38]} 39. b4 {[%emt 0:01:32]} Bb7 {[%emt 0:00:32]} 40. Kb3 {[%emt 0:00:00]} Ba6 {[%emt 0:00:00]} 41. b5 {[%emt 0:14:49]} 1/2-1/2